Cogmind - Beta 9.3 @@@ ROGUE MODE // 2020.01.04 @ 17:58:11 Player: alice_fexa Result: Destroyed by G-47 Trooper with Particle Gun Performance ------------- Evolutions (1) 500 Regions Visited (3) 600 Robots Destroyed (70) 350 Value Destroyed (2235) 2235 Prototype IDs (3) 60 Alien Tech Used (0) 0 Bonus (202) 202 TOTAL SCORE: 3947 Bonus ------- High Alert Combat Kills 202 Cogmind --------- Core Integrity 0/400 Matter 277/300 Energy 259/265 System Corruption 0% Temperature Cool (9) Movement Treading (200) Ox2 Location -9/Storage Parts ------- > --- POWER (1) -------- Improved Ion Engine > --- PROPULSION (2) --- Improved Treads Armored Wheel > --- UTILITY (4) ------ Heat Sink Improved Heat Sink Large Storage Unit High-capacity Storage Unit > --- WEAPON (2) ------- Advanced Beam Cannon Heavy Assault Rifle > --- INVENTORY (18) --- Improved Ion Engine Deuterium Engine Deuterium Engine Deuterium Engine Improved Treads Improved Treads Improved Treads Improved Treads Improved Treads Large Storage Unit Improved Sensor Array Hacking Suite Improved Medium Laser Advanced Beam Cannon Advanced Beam Cannon Advanced Beam Cannon Heavy Assault Rifle Axe Peak State ------------ > --- POWER ------------ Improved Ion Engine > --- PROPULSION ------- Improved Treads Armored Wheel > --- UTILITY ---------- Heat Sink Improved Heat Sink Large Storage Unit High-capacity Storage Unit > --- WEAPON ----------- Advanced Beam Cannon Heavy Assault Rifle > --- INVENTORY -------- Improved Ion Engine Deuterium Engine Deuterium Engine Deuterium Engine Light Treads Light Treads Light Treads Light Treads Improved Treads Improved Treads Large Storage Unit Hacking Suite Improved Medium Laser Advanced Beam Cannon Advanced Beam Cannon Advanced Beam Cannon Heavy Assault Rifle Axe [Rating: 21] Favorites ----------- Power Deuterium Engine Engine Deuterium Engine Propulsion Light Treads Treads Light Treads Wheel Compact Wheel Utility High-capacity Storage Unit Device Heat Sink Storage High-capacity Storage Unit Protection Light Armor Plating Weapon Heavy Assault Rifle Energy Gun Particle Gun Energy Cannon Advanced Beam Cannon Ballistic Gun Heavy Assault Rifle Build | -11 -10 -9 -9 ------- Run | Scr Mat Mat Sto Slots Evolved 2 | . . 2 . Power . | . . . . Propulsion . | . . . . Utility 2 | . . 2 . Weapon . | . . . . Parts Attached 48 | 6 4 15 23 Power 7 | 1 1 2 3 Engine 7 | 1 1 2 3 Core . | . . . . Reactor . | . . . . Propulsion 11 | 2 . 3 6 Treads 7 | 1 . 2 4 Leg . | . . . . Wheel 4 | 1 . 1 2 Hover . | . . . . Flight . | . . . . Utility 17 | 1 2 5 9 Device 9 | . . 2 7 Storage 3 | 1 2 . . Processor . | . . . . Hackware . | . . . . Protection 5 | . . 3 2 Artifact . | . . . . Weapon 13 | 2 1 5 5 Energy Gun 3 | . 1 1 1 Energy Cannon 5 | . . 2 3 Ballistic Gun 5 | 2 . 2 1 Ballistic Cannon . | . . . . Launcher . | . . . . Special Weapon . | . . . . Impact Weapon . | . . . . Slashing Weapon . | . . . . Piercing Weapon . | . . . . Special Melee Weapon . | . . . . Unidentified Prototypes 1 | . . . 1 Parts Lost 11 | . . 6 5 Power 1 | . . . 1 Propulsion 1 | . . . 1 Utility 5 | . . 3 2 Weapon 4 | . . 3 1 Highest Loss Streak 5 | . . 3 5 Average Slot Usage (%) 97 | . 97 97 97 Engine 11 | . 14 10 10 Treads 11 | . 14 10 11 Wheel 11 | . 14 11 10 Device 9 | . . 10 13 Storage 22 | . 26 22 22 Protection 6 | . . 10 7 Energy Gun 2 | . 5 5 . Energy Cannon 6 | . . 4 11 Ballistic Gun 13 | . 22 10 11 Naked Turns . | . . . . Heaviest Build 72 | 12 58 72 72 Greatest Support 23 | 20 16 20 23 Greatest Overweight (x) 5 | . 3 4 5 Average Overweight (x) 3 | . 1 3 4 Largest Inventory Capacity 18 | 6 18 18 18 Average Capacity 16 | 5 14 18 18 Most Carried 18 | 4 14 18 18 Average Carried 15 | 2 8 16 17 Final Capacity 18 | 6 18 18 18 Final Carried 18 | 4 14 18 18 Class Distribution -------------------- 75% | Mutant 24% | Scavenger-Mutant Dominant Class ---------------- Mutant | -10/Materials Mutant | -9/Materials Mutant | -9/Storage Resources | -11 -10 -9 -9 ----------- Run | Scr Mat Mat Sto Matter Collected 1140 | 212 194 249 485 Remotely . | . . . . Salvage Created 2990 | . 324 732 1934 Parts 189 | . 21 40 128 Haulers Intercepted 5 | . 1 1 3 Recyclers Shooed 3 | . . 1 2 Parts Field Recycled . | . . . . Retrieved Matter . | . . . . Parts Self-Destructed . | . . . . Prevented . | . . . . Kills | -11 -10 -9 -9 ------- Run | Scr Mat Mat Sto Combat Hostiles Destroyed 49 | . 5 12 32 Guns 21 | . 5 7 9 Cannons 26 | . . 3 23 AOE 2 | . . 2 . Classes Destroyed 12 | . 4 4 4 Worker 3 | . . . 3 Builder 1 | . . 1 . Tunneler 1 | . . 1 . Hauler 5 | . 1 1 3 Recycler 5 | . . 2 3 Operator 2 | . 1 . 1 Watcher 4 | . 2 1 1 Grunt 31 | . 5 8 18 Brawler 2 | . . . 2 Duelist 2 | . . . 2 Protector 1 | . . . 1 Sentry 13 | . . 4 9 Best Kill Streak 9 | . 2 7 9 Combat Bots Only 6 | . 2 3 6 Max Kills in Single Turn 3 | . 1 3 2 Gunslinging . | . . . . Exploded 2 | . . 2 . Melee . | . . . . Uniques/NPCs Destroyed . | . . . . Combat | -11 -10 -9 -9 -------- Run | Scr Mat Mat Sto Damage Taken 2512 | . 226 702 1584 Core 431 | . 25 13 393 Absorbed by Shields . | . . . . Core Remaining (%) 95 | 100 90 . . Volleys Fired 171 | . 28 40 103 Largest 2 | . 2 2 2 Hottest 91 | . 85 91 91 Shots Fired 336 | . 56 76 204 Gun 225 | . 56 68 101 Cannon 111 | . . 8 103 Launcher . | . . . . Special . | . . . . Kinetic 191 | . 50 40 101 Thermal 145 | . 6 36 103 Explosive . | . . . . Electromagnetic . | . . . . Robot Hit Streak 14 | . 10 10 14 Robot Miss Streak 4 | . 3 2 4 Penetration Max . | . . . . Secondary Targets 1 | . . 1 . Max Gunslinging Chain 1 | . . 1 . Shots Hit Robots 220 | . 36 51 133 Core Hits 103 | . 18 26 59 Critical Hits 13 | . 2 2 9 Critical Kills 4 | . . . 4 Critical Parts Destroyed 8 | . 2 1 5 Melee Attacks . | . . . . Impact . | . . . . Slashing . | . . . . Piercing . | . . . . Sneak Attacks . | . . . . Combat Hostiles . | . . . . Follow-up Attacks . | . . . . Damage Inflicted 4136 | . 442 1163 2531 Guns 2013 | . 442 733 838 Cannons 1815 | . . 122 1693 Explosions 308 | . . 308 . Melee . | . . . . Ramming . | . . . . Kinetic 1588 | . 395 355 838 Thermal 2548 | . 47 808 1693 Explosive . | . . . . Electromagnetic . | . . . . Impact . | . . . . Slashing . | . . . . Piercing . | . . . . Highest Corruption . | . . . . Average Corruption . | . . . . Corruption Purged . | . . . . Overload Shots . | . . . . Overflow Damage 80 | . . 80 . Projectiles . | . . . . Explosions 80 | . . 80 . Melee . | . . . . Knockbacks . | . . . . Impact . | . . . . Kinetic . | . . . . Secondary . | . . . . Self-Inflicted Damage 204 | . . 204 . Shots 2 | . . 2 . Rammed . | . . . . Targets Rammed . | . . . . Kicked . | . . . . Crushed . | . . . . Highest Temperature 261 | . 72 83 261 Average Temperature 50 | . 19 21 67 Received Heat Transfer 1038 | . 126 225 687 Siege Activations . | . . . . Robots Corrupted . | . . . . Combat Hostiles . | . . . . Parts Fried . | . . . . Impact Corruptions . | . . . . Robots Melted . | . . . . Combat Hostiles . | . . . . Parts Melted 2 | . . . 2 Heat Transferred 4324 | . 111 1310 2903 Parts Sabotaged . | . . . . Parts Stolen . | . . . . Parts Stripped . | . . . . Power Chain Reactions . | . . . . Missiles Intercepted . | . . . . Alert | -11 -10 -9 -9 ------- Run | Scr Mat Mat Sto Peak Influence 778 | . 194 302 778 Average Influence 244 | . 71 134 392 Maximum Alert Level 3 | . . 1 3 Low Security (%) 57 | 100 100 78 25 Level 1 21 | . . 21 32 Level 2 17 | . . . 36 Level 3 2 | . . . 5 Level 4 . | . . . . Level 5 . | . . . . High Security . | . . . . Max Security . | . . . . Squads Dispatched 7 | . 1 1 5 Investigation 1 | . . . 1 Extermination . | . . . . Reinforcement 4 | . 1 1 2 Assault 1 | . . . 1 Garrison 1 | . . . 1 Intercept . | . . . . Construction Impeded . | . . . . Haulers Reinforced . | . . . . Stealth | -11 -10 -9 -9 --------- Run | Scr Mat Mat Sto Distress Signals 4 | . . 2 2 Communications Jammed . | . . . . Distress Signals . | . . . . Times Spotted 80 | . 10 25 45 Peak Tracking Total 7 | . 4 6 7 Tactical Retreats 6 | . . 2 4 Traps | -11 -10 -9 -9 ------- Run | Scr Mat Mat Sto Traps Triggered 3 | . . . 3 Indirectly . | . . . . Trap Hack Attempts . | . . . . Triggered . | . . . . Disarmed . | . . . . Reprogrammed . | . . . . Reused . | . . . . Traps Extracted . | . . . . Installed . | . . . . Triggered . | . . . . Machines | -11 -10 -9 -9 ---------- Run | Scr Mat Mat Sto Machines Disabled 6 | . 1 3 2 Max in Single Turn 2 | . 1 2 1 Garrison Access 1 | . . . 1 Machines Sabotaged . | . . . . Garrisons Compromised . | . . . . Overloaded Fab Kills . | . . . . Fab Network Shutdowns . | . . . . Hacking | -11 -10 -9 -9 --------- Run | Scr Mat Mat Sto Machines Accessed 14 | . 3 4 7 Terminals 12 | . 3 3 6 Fabricators . | . . . . Repair Stations 2 | . . 1 1 Recycling Units . | . . . . Scanalyzers . | . . . . Garrison Access . | . . . . Total Hacks 38 | . 9 12 17 Successful 19 | . 4 9 6 Failed 19 | . 5 3 11 Catastrophic 3 | . . . 3 Database Lockouts . | . . . . Manual 28 | . 7 6 15 Terminals 32 | . 9 8 15 Fabricators . | . . . . Repair Stations 6 | . . 4 2 Recycling Units . | . . . . Scanalyzers . | . . . . Garrison Access . | . . . . Terminal Hacks 6 | . 2 3 1 Part Schematic 1 | . . 1 . Prototype ID Bank 1 | . 1 . . Unreport Threat 3 | . 1 1 1 Registered Prototypes 1 | . . 1 . Fabricator Hacks . | . . . . Repair Station Hacks 6 | . . 4 2 Scan Component 3 | . . 2 1 Repair 3 | . . 2 1 Recycling Unit Hacks . | . . . . Scanalyzer . | . . . . Garrison Access Hacks . | . . . . Unauthorized Hacks 18 | . 6 4 8 Terminals 7 | . 2 2 3 Botnet 7 | . 2 2 3 Fabricators . | . . . . Repair Stations . | . . . . Recycling Units . | . . . . Scanalyzers . | . . . . Garrison Access . | . . . . Data Cores Recovered . | . . . . Used . | . . . . Hacking Detections 12 | . 3 3 6 Full Trace Events . | . . . . Feedback Events . | . . . . Feedback Blocked . | . . . . Robot Schematics Acquired . | . . . . Robots Built . | . . . . Matter . | . . . . Time . | . . . . Total Robot Build Rating . | . . . . Part Schematics Acquired 1 | . . 1 . Parts Built . | . . . . Matter . | . . . . Time . | . . . . Total Part Build Rating . | . . . . Parts Repaired 3 | . . 2 1 Time 90 | . . 64 26 Parts Recycled . | . . . . Recycled Matter . | . . . . Retrieved Matter . | . . . . Retrieved Components . | . . . . Parts Scanalyzed . | . . . . Part Schematics Acquired . | . . . . Parts Damaged . | . . . . Bothacking | -11 -10 -9 -9 ------------ Run | Scr Mat Mat Sto Used RIF Installer . | . . . . Robots Hacked . | . . . . Non-combat . | . . . . Combat . | . . . . Robot Hacks Applied . | . . . . Relay Couplers Released 1 | . . . 1 Machine Destruction 1 | . . . 1 Robots Rewired . | . . . . Allies Hacked . | . . . . Hacks Repelled . | . . . . Allies | -11 -10 -9 -9 -------- Run | Scr Mat Mat Sto Total Allies . | . . . . Largest Group . | . . . . Highest-Rated Group . | . . . . Highest-Rated Ally . | . . . . Total Orders . | . . . . Ally Attacks . | . . . . Total Damage . | . . . . Kills . | . . . . Allies Corrupted . | . . . . Allies Melted . | . . . . Intel | -11 -10 -9 -9 ------- Run | Scr Mat Mat Sto Robot Analysis Total . | . . . . Derelict Logs Recovered . | . . . . Drone Launches . | . . . . Drone Recoveries . | . . . . Exploration | -11 -10 -9 -9 ------------- Run | Scr Mat Mat Sto Turns Passed 2285 | 41 498 632 1114 Spaces Moved 1038 | 29 308 262 439 Core 2 | 2 . . . Treads 18 | 1 . 3 14 Legs . | . . . . Wheels 1018 | 26 308 259 425 Hover . | . . . . Flight . | . . . . Fastest Speed 50 | 50 100 130 130 Average Speed 132 | 98 119 137 141 Slowest Speed 220 | 160 130 220 220 Overloaded Moves . | . . . . Propulsion Burnouts . | . . . . Robots Hopped . | . . . . Cave-ins Triggered . | . . . . Exploration Rate (%) 32 | 3 45 26 54 Regions Visited 3 Branch Regions 1 Pre-discovered Areas . | . . . . Known Exits Taken . | . . . . Unknown Exits Taken 3 | 1 1 1 . Scrap Searched . | . . . . Spaces Dug . | . . . . Terrain Destroyed 43 | . . 43 . Melee . | . . . . Projectile . | . . . . AOE 43 | . . 43 . Actions | -11 -10 -9 -9 --------- Run | Scr Mat Mat Sto Total 1631 | 38 385 464 744 Wait 281 | . 35 112 134 Move 1035 | 28 307 261 439 Hop . | . . . . Pick Up 46 | 4 9 21 12 Fast Attach 17 | 6 2 4 5 Attach 9 | . . 6 3 Detach . | . . . . Swap 22 | . 2 5 15 Drop 42 | . 2 15 25 Fire 171 | . 28 40 103 Melee . | . . . . Ram . | . . . . Kick . | . . . . Crush . | . . . . Escape Stasis 8 | . . . 8 Rewire . | . . . . Trap . | . . . . Miscellaneous . | . . . . Route ------- -11/Scrapyard -10/Materials -9/Materials -9/Storage History --------- Turn | Location | Event 24 | -11/Scrapyard | Discovered new exit (range 16) 42 | -11/Scrapyard | Entered Materials 311 | -10/Materials | Build established: Mutant 493 | -10/Materials | Discovered new exit (range 16) 540 | -10/Materials | Entered another Materials area 540 | -9/Materials | Evolved 2 slots: Utility x2 978 | -9/Materials | Lost 3 parts (1u2w) 1085 | -9/Materials | Repaired Deuterium Engine 1112 | -9/Materials | Repaired Lgt. Treads 1135 | -9/Materials | Discovered new exit (range 10) 1172 | -9/Materials | Entered Storage 1527 | -9/Storage | Repaired Com. Wheel 1724 | -9/Storage | Garrison activated, responded to threat 1939 | -9/Storage | Core integrity fell below 50% 1956 | -9/Storage | Core integrity fell below 20% 1992 | -9/Storage | Lost 5 parts (1p1n2u1w) 2286 | -9/Storage | Destroyed by G-47 Trooper with Particle Gun Last Messages --------------- 02183_ R-06 Scavenger collects Imp. Ion Engine. 02187_ O-16 Technician destroyed. 02190_ Acquired 3 matter. 02207_ Dropped Lgt. Treads. 02210_ Acquired Imp. Treads. 02213_ Dropped Lgt. Treads. 02213_ Acquired Imp. Treads. 02215_ Dropped Lgt. Treads. 02215_ Acquired Imp. Treads. 02218_ Dropped Lgt. Treads. 02218_ Acquired Imp. Treads. 02222_ Dropped Lgt. Treads. 02222_ Acquired Imp. Treads. 02240_ Storage Shell breached. 02247_ Dropped Imp. Ion Engine. 02254_ Dropped Lgt. Treads. 02254_ Acquired Imp. Sensor Array. 02269_ C-30 ARC bursts open, deploying its payload. 02269_ G-47 Trooper unfolds itself. 02269_ G-34 Mercenary unfolds itself. Map ----- +----------------------------------------------------+ | ???????????????????????????????????? | | ???????????????????????????????????? | | ???????????????????????????????????? | | ???????????????????????????????????? | | ???????????????????????????????????? | | ???????????????????????????????????? | | ???????????????????????????????????? | | ???????????????????????????????????? | | ???????????????????????????????????? | | ???????????????????????????????????? | | ???????????????????????????????????? | | ???????????????????????????????????? | | ???????????????????????????????????? | | ???????????????????????????????????? | | ????????????????????? ???????????? | | ????????????????????# ???????????? | | ????????????????????# ???????????? | | ????????????????????# ???????????? | | ????????????????????# % ???????????? | | ????????????????????# ???????????? | | ????????????????????# +??????????? | | #######?????????????# #??????????? | | ]#???########### #??????????? | | #???# """"" # #??????????? | | % ! % #???# """"" # ##########?? | | !!^ #???# """"" # #@ #?? | | !!% ##??# # # ""=" #?? | | " !!!*%#??# # # ""| "???? | | % %%!!##??# # # """*!"???? | | " %%=/#???# /%= # #g"[!"""???? | | =*%%[=#???# # g "[!"?????? | | ##/############/##### # " "" #?? | | #=!= % # #?? | | #% % + #?? | | * ##########?? | | ##+#################+####??????????? | | = ###???????#T #????????????? | | " =%! ""#???????##"="#????????????? | | * T"#????????#===#????????????? | | " ""#????????# ==#????????????? | | ]]] ###????????#####????????????? | | ]] #???????????????????????????? | | ]] #???????????????????????????? | | #???????????????????????????? | | # ######???????????????????????????? | | ##??????##########?????????????????? | | ????????# #?????????????????? | | ????????# """ #?????????????????? | | ?????#### """ #?????????????????? | | ?????#""" """ #?????????????????? | +----------------------------------------------------+ Best States ------------- Heat Dissipation 52 Energy Generation 14 Energy Capacity 275 Matter Stores 300 Matter Capacity 300 Sight Range 16 Terrain Scan Density 10 Armor Coverage 225 Evasion (%) 40 Recoil Reduction 1 Item Schematics ----------------- Hcp. Storage Unit | -9/Materials | Hacked Robot Schematics ------------------ None Fabricated ------------ Nothing Alien Tech Used ----------------- None Achievements -------------- None Challenges ------------ None Game ------ Seed MagneticMetafiberCore Manual? 0 Play Time 00:18:18 Cumulative 611.7 hours Start 2020.01.04 @ 17:42:26 End 2020.01.04 @ 17:58:11 Sessions 1 Manual Loads 0 Difficulty Rogue Special Mode None Game No. 543 Rogue 503 Adventurer 40 Explorer 0 Win Type - Total 39 Types 25/0/12/2/0/0/0 Lore% 88 Gallery% 89 Achievement% 69 Wizard Run 0 Options --------- ASCII 0 Keyboard 0 Movement Numpad Keybinds 0 Fullscreen 0 Font 16/Terminus Map View 76x50 Tactical HUD 1 Map Filters NONE Filters NONE Steam 1 RUN: 643bee4c-d220-4c93-96c3-c3ec59471e00